[Event "Titled Tuesday Blitz March 07 Early 2023"]
[White "SicilianPanzer"]
[Black "Kriti Mayur Patel"]
[BlackFideId "35061780"]
[WhiteElo "2252"]
[BlackElo "1306"]
[Result "0-1"]
[Round "04"]
[TimeControl "180+2"]
[Date "2023.03.07"]
[WhiteClock "0:00:01"]
[BlackClock "0:00:17"]

1. e4 {[%clk 0:03:00]}  e5 {[%clk 0:03:00]} 2. Nf3 {[%clk 0:03:00]}  Nc6 {[%clk 0:03:00]} 3. d4 {[%clk 0:02:59]}  exd4 {[%clk 0:03:00]} 4. Nxd4 {[%clk 0:02:58]}  Bb4+ {[%clk 0:02:59]} 5. c3 {[%clk 0:02:58]}  Bc5 {[%clk 0:02:59]} 6. Nb3 {[%clk 0:02:56]}  Bb6 {[%clk 0:02:58]} 7. Bd3 {[%clk 0:02:54]}  Nf6 {[%clk 0:02:57]} 8. N1d2 {[%clk 0:02:51]}  O-O {[%clk 0:02:56]} 9. O-O {[%clk 0:02:47]}  d6 {[%clk 0:02:56]} 10. Nc4 {[%clk 0:02:39]}  Bg4 {[%clk 0:02:49]} 11. Qc2 {[%clk 0:02:28]}  Ne5 {[%clk 0:02:31]} 12. Nxb6 {[%clk 0:02:20]}  axb6 {[%clk 0:02:30]} 13. f3 {[%clk 0:02:11]}  Bh5 {[%clk 0:02:26]} 14. Be2 {[%clk 0:02:09]}  Bg6 {[%clk 0:02:24]} 15. Bg5 {[%clk 0:01:57]}  d5 {[%clk 0:02:13]} 16. Rad1 {[%clk 0:01:35]}  c6 {[%clk 0:02:02]} 17. c4 {[%clk 0:01:28]}  Rc8 {[%clk 0:01:37]} 18. Qc3 {[%clk 0:01:06]}  Nxe4 {[%clk 0:00:54]} 19. fxe4 {[%clk 0:00:39]}  Qxg5 {[%clk 0:00:47]} 20. exd5 {[%clk 0:00:39]}  cxd5 {[%clk 0:00:40]} 21. g3 {[%clk 0:00:13]}  Nxc4 {[%clk 0:00:26]} 22. Bxc4 {[%clk 0:00:08]}  Rxc4 {[%clk 0:00:24]} 23. Qf3 {[%clk 0:00:05]}  Be4 {[%clk 0:00:22]} 24. Qf2 {[%clk 0:00:05]}  Rc2 {[%clk 0:00:21]} 25. Rd2 {[%clk 0:00:04]}  Rxd2 {[%clk 0:00:20]} 26. Nxd2 {[%clk 0:00:04]}  Bg6 {[%clk 0:00:18]} 27. Rd1 {[%clk 0:00:03]}  Qe5 {[%clk 0:00:18]} 28. Qxb6 {[%clk 0:00:02]}  Re8 {[%clk 0:00:16]} 29. Nf1 {[%clk 0:00:01]}  h6 {[%clk 0:00:17]} 30. Qf2 {[%clk 0:00:01]}  Be4 {[%clk 0:00:13]} 31. Qd2 {[%clk 0:00:01]}  Qf5 {[%clk 0:00:12]} 32. Ne3 {[%clk 0:00:01]}  Qf3 {[%clk 0:00:12]} 33. Ng2 {[%clk 0:00:01]}  Qxg2+ {[%clk 0:00:11]} 34. Qxg2 {[%clk 0:00:01]}  Bxg2 {[%clk 0:00:12]} 35. Kxg2 {[%clk 0:00:01]}  Re2+ {[%clk 0:00:12]} 36. Kg1 {[%clk 0:00:01]}  Rxb2 {[%clk 0:00:13]} 37. Rxd5 {[%clk 0:00:02]}  Rxa2 {[%clk 0:00:13]} 38. Rd8+ {[%clk 0:00:02]}  Kh7 {[%clk 0:00:12]} 39. Rd7 {[%clk 0:00:03]}  Rb2 {[%clk 0:00:12]} 40. Rxf7 {[%clk 0:00:03]}  b5 {[%clk 0:00:13]} 41. Rb7 {[%clk 0:00:03]}  b4 {[%clk 0:00:13]} 42. Rb6 {[%clk 0:00:02]}  b3 {[%clk 0:00:13]} 43. h4 {[%clk 0:00:02]}  Rb1+ {[%clk 0:00:14]} 44. Kg2 {[%clk 0:00:02]}  b2 {[%clk 0:00:15]} 45. Kh2 {[%clk 0:00:02]}  Kg8 {[%clk 0:00:15]} 46. Kg2 {[%clk 0:00:02]}  Kf7 {[%clk 0:00:15]} 47. Kh2 {[%clk 0:00:03]}  Ke7 {[%clk 0:00:16]} 48. Kg2 {[%clk 0:00:03]}  Kd7 {[%clk 0:00:17]} 49. h5 {[%clk 0:00:02]}  Kc7 {[%clk 0:00:17]} 50. Rb3 {[%clk 0:00:02]}  Kc6 {[%clk 0:00:17]} 51. Rb8 {[%clk 0:00:02]}  Kd5 {[%clk 0:00:17]} 52. Rd8+ {[%clk 0:00:02]}  Kc4 {[%clk 0:00:18]} 53. Rc8+ {[%clk 0:00:02]}  Kd3 {[%clk 0:00:18]} 54. Rd8+ {[%clk 0:00:03]}  Kc2 {[%clk 0:00:18]} 55. Rc8+ {[%clk 0:00:03]}  Kb3 {[%clk 0:00:19]} 56. Rb8+ {[%clk 0:00:04]}  Kc4 {[%clk 0:00:19]} 57. Rc8+ {[%clk 0:00:04]}  Kd3 {[%clk 0:00:20]} 58. Rd8+ {[%clk 0:00:04]}  Ke3 {[%clk 0:00:21]} 59. Re8+ {[%clk 0:00:05]}  Kd4 {[%clk 0:00:20]} 60. Rd8+ {[%clk 0:00:05]}  Ke5 {[%clk 0:00:21]} 61. Rb8 {[%clk 0:00:06]}  Kf5 {[%clk 0:00:21]} 62. Rb5+ {[%clk 0:00:06]}  Kg4 {[%clk 0:00:22]} 63. Kh2 {[%clk 0:00:02]}  Kf3 {[%clk 0:00:21]} 64. Rb3+ {[%clk 0:00:01]}  Kg4 {[%clk 0:00:22]} 65. Kg2 {[%clk 0:00:01]}  Kxh5 {[%clk 0:00:17]} 66. Rb4 {[%clk 0:00:01]}  g5 {[%clk 0:00:17]} 0-1


[Site "https://www.chess.com"]

[Event "Titled Tuesday Blitz March 07 Early 2023"]
[White "Necula, Iulian"]
[Black "Chakravarthi Reddy, M"]
[WhiteFideId "1232380"]
[BlackFideId "25009532"]
[WhiteElo "1790"]
[BlackElo "2201"]
[Result "0-1"]
[Round "04"]
[TimeControl "180+2"]
[Date "2023.03.07"]
[WhiteClock "0:00:31"]
[BlackClock "0:01:18"]

1. d4 {[%clk 0:03:00]}  d5 {[%clk 0:02:56]} 2. Nc3 {[%clk 0:03:00]}  Nf6 {[%clk 0:02:54]} 3. Bf4 {[%clk 0:03:01]}  g6 {[%clk 0:02:54]} 4. e3 {[%clk 0:02:59]}  Bg7 {[%clk 0:02:53]} 5. h4 {[%clk 0:02:59]}  h5 {[%clk 0:02:49]} 6. Nf3 {[%clk 0:02:59]}  c5 {[%clk 0:02:49]} 7. dxc5 {[%clk 0:02:52]}  Qa5 {[%clk 0:02:49]} 8. Bd3 {[%clk 0:02:35]}  Qxc5 {[%clk 0:02:42]} 9. O-O {[%clk 0:02:35]}  Nc6 {[%clk 0:02:38]} 10. Ng5 {[%clk 0:02:32]}  e5 {[%clk 0:02:32]} 11. Bg3 {[%clk 0:02:31]}  Bg4 {[%clk 0:02:25]} 12. Qd2 {[%clk 0:02:25]}  O-O {[%clk 0:02:23]} 13. f3 {[%clk 0:02:22]}  Bc8 {[%clk 0:02:11]} 14. Rae1 {[%clk 0:02:21]}  b6 {[%clk 0:02:07]} 15. a3 {[%clk 0:02:21]}  Bb7 {[%clk 0:02:06]} 16. Kh2 {[%clk 0:02:06]}  Rad8 {[%clk 0:02:05]} 17. Na4 {[%clk 0:01:35]}  Qe7 {[%clk 0:02:05]} 18. Qe2 {[%clk 0:01:11]}  e4 {[%clk 0:02:03]} 19. Bb5 {[%clk 0:01:03]}  exf3 {[%clk 0:01:57]} 20. gxf3 {[%clk 0:00:56]}  a6 {[%clk 0:01:52]} 21. Bxc6 {[%clk 0:00:55]}  Bxc6 {[%clk 0:01:52]} 22. Nxb6 {[%clk 0:00:55]}  Bb5 {[%clk 0:01:50]} 23. c4 {[%clk 0:00:55]}  dxc4 {[%clk 0:01:51]} 24. a4 {[%clk 0:00:49]}  c3 {[%clk 0:01:23]} 25. axb5 {[%clk 0:00:31]}  Rd2 {[%clk 0:01:23]} 26. bxa6 {[%clk 0:00:31]}  Rxb2 {[%clk 0:01:18]} 0-1


[Site "https://www.chess.com"]

[Event "Titled Tuesday Blitz March 07 Early 2023"]
[White "Naroditsky, Daniel"]
[Black "Tsydypov, Zhamsaran"]
[WhiteFideId "2026961"]
[BlackFideId "4108566"]
[WhiteElo "2633"]
[BlackElo "2584"]
[Result "1/2-1/2"]
[Round "05"]
[TimeControl "180+2"]
[Date "2023.03.07"]
[WhiteClock "0:00:04"]
[BlackClock "0:00:14"]

1. e4 {[%clk 0:03:00]}  c5 {[%clk 0:02:58]} 2. c3 {[%clk 0:02:58]}  e6 {[%clk 0:02:56]} 3. d4 {[%clk 0:02:58]}  d5 {[%clk 0:02:57]} 4. e5 {[%clk 0:02:54]}  Nc6 {[%clk 0:02:58]} 5. Nf3 {[%clk 0:02:54]}  Qb6 {[%clk 0:02:58]} 6. Bd3 {[%clk 0:02:55]}  Bd7 {[%clk 0:02:58]} 7. dxc5 {[%clk 0:02:51]}  Bxc5 {[%clk 0:02:55]} 8. O-O {[%clk 0:02:51]}  Qc7 {[%clk 0:02:51]} 9. Re1 {[%clk 0:02:44]}  Nge7 {[%clk 0:02:51]} 10. Nbd2 {[%clk 0:02:33]}  Ng6 {[%clk 0:02:50]} 11. Nb3 {[%clk 0:02:29]}  Bb6 {[%clk 0:02:50]} 12. Qe2 {[%clk 0:02:27]}  O-O {[%clk 0:02:48]} 13. Nbd4 {[%clk 0:02:07]}  a6 {[%clk 0:02:38]} 14. h4 {[%clk 0:02:01]}  Nxd4 {[%clk 0:02:30]} 15. cxd4 {[%clk 0:01:55]}  f5 {[%clk 0:02:28]} 16. h5 {[%clk 0:01:32]}  Ne7 {[%clk 0:02:27]} 17. h6 {[%clk 0:01:33]}  Nc6 {[%clk 0:02:16]} 18. hxg7 {[%clk 0:01:33]}  Rf7 {[%clk 0:02:16]} 19. Be3 {[%clk 0:01:30]}  Rxg7 {[%clk 0:02:15]} 20. Rac1 {[%clk 0:01:28]}  Qd8 {[%clk 0:02:15]} 21. Qd2 {[%clk 0:01:25]}  Ba5 {[%clk 0:02:09]} 22. Rc3 {[%clk 0:01:16]}  Bxc3 {[%clk 0:02:09]} 23. bxc3 {[%clk 0:01:17]}  Rc8 {[%clk 0:02:01]} 24. Bg5 {[%clk 0:01:16]}  Qa5 {[%clk 0:01:57]} 25. Bf6 {[%clk 0:01:13]}  Rg4 {[%clk 0:01:51]} 26. Qh6 {[%clk 0:00:45]}  Rg6 {[%clk 0:01:38]} 27. Qh5 {[%clk 0:00:45]}  Be8 {[%clk 0:01:35]} 28. Ng5 {[%clk 0:00:43]}  h6 {[%clk 0:01:32]} 29. Re3 {[%clk 0:00:37]}  Rxf6 {[%clk 0:01:29]} 30. Qh3 {[%clk 0:00:31]}  Rg6 {[%clk 0:01:14]} 31. Nxe6 {[%clk 0:00:32]}  Ne7 {[%clk 0:01:10]} 32. Nf4 {[%clk 0:00:29]}  Rg7 {[%clk 0:00:42]} 33. Qxh6 {[%clk 0:00:26]}  Qxc3 {[%clk 0:00:42]} 34. Rh3 {[%clk 0:00:22]}  Qc1+ {[%clk 0:00:38]} 35. Kh2 {[%clk 0:00:22]}  Ng6 {[%clk 0:00:38]} 36. Nxd5 {[%clk 0:00:04]}  Qxh6 {[%clk 0:00:35]} 37. Rxh6 {[%clk 0:00:05]}  Rd8 {[%clk 0:00:31]} 38. Nf6+ {[%clk 0:00:04]}  Kf8 {[%clk 0:00:31]} 39. d5 {[%clk 0:00:02]}  Nxe5 {[%clk 0:00:30]} 40. Bxf5 {[%clk 0:00:02]}  Ke7 {[%clk 0:00:29]} 41. Ne4 {[%clk 0:00:02]}  Rxd5 {[%clk 0:00:28]} 42. Re6+ {[%clk 0:00:02]}  Kd8 {[%clk 0:00:28]} 43. Nf6 {[%clk 0:00:02]}  Bf7 {[%clk 0:00:22]} 44. Nxd5 {[%clk 0:00:02]}  Bxe6 {[%clk 0:00:23]} 45. Bxe6 {[%clk 0:00:03]}  Rg6 {[%clk 0:00:21]} 46. Bf5 {[%clk 0:00:03]}  Rd6 {[%clk 0:00:22]} 47. Be4 {[%clk 0:00:03]}  b5 {[%clk 0:00:22]} 48. f4 {[%clk 0:00:03]}  Nc4 {[%clk 0:00:21]} 49. g4 {[%clk 0:00:02]}  a5 {[%clk 0:00:20]} 50. g5 {[%clk 0:00:02]}  Nd2 {[%clk 0:00:19]} 51. Bg2 {[%clk 0:00:01]}  b4 {[%clk 0:00:18]} 52. f5 {[%clk 0:00:02]}  Ke8 {[%clk 0:00:16]} 53. g6 {[%clk 0:00:02]}  Nc4 {[%clk 0:00:14]} 54. f6 {[%clk 0:00:03]}  Ne5 {[%clk 0:00:14]} 55. g7 {[%clk 0:00:01]}  Ng4+ {[%clk 0:00:10]} 56. Kg3 {[%clk 0:00:01]}  Nh6 {[%clk 0:00:10]} 57. Kf4 {[%clk 0:00:01]}  Kf7 {[%clk 0:00:11]} 58. Ke5 {[%clk 0:00:02]}  Re6+ {[%clk 0:00:10]} 59. Kd4 {[%clk 0:00:02]}  Ng8 {[%clk 0:00:11]} 60. Bh3 {[%clk 0:00:02]}  Re2 {[%clk 0:00:10]} 61. Bg4 {[%clk 0:00:02]}  Rd2+ {[%clk 0:00:09]} 62. Kc5 {[%clk 0:00:02]}  Rxd5+ {[%clk 0:00:10]} 63. Kxd5 {[%clk 0:00:02]}  Nxf6+ {[%clk 0:00:11]} 64. Kc5 {[%clk 0:00:02]}  Nxg4 {[%clk 0:00:11]} 65. Kb5 {[%clk 0:00:03]}  Ne5 {[%clk 0:00:11]} 66. Kxa5 {[%clk 0:00:04]}  Nd3 {[%clk 0:00:12]} 67. Kb5 {[%clk 0:00:04]}  Kxg7 {[%clk 0:00:12]} 68. Kc4 {[%clk 0:00:04]}  Nc1 {[%clk 0:00:13]} 69. Kxb4 {[%clk 0:00:04]}  Nxa2+ {[%clk 0:00:14]} 1/2-1/2


[Site "https://www.chess.com"]

[Event "Titled Tuesday Blitz March 07 Early 2023"]
[White "Steinberg, Nitzan"]
[Black "Erigaisi Arjun"]
[WhiteFideId "2801795"]
[BlackFideId "35009192"]
[WhiteElo "2486"]
[BlackElo "2737"]
[Result "0-1"]
[Round "05"]
[TimeControl "180+2"]
[Date "2023.03.07"]
[WhiteClock "0:00:03"]
[BlackClock "0:00:04"]

1. e4 {[%clk 0:03:00]}  c6 {[%clk 0:02:55]} 2. Nf3 {[%clk 0:02:58]}  d5 {[%clk 0:02:55]} 3. Nc3 {[%clk 0:02:58]}  g6 {[%clk 0:02:55]} 4. d4 {[%clk 0:02:57]}  Bg7 {[%clk 0:02:55]} 5. h3 {[%clk 0:02:58]}  Nf6 {[%clk 0:02:55]} 6. Bd3 {[%clk 0:02:51]}  dxe4 {[%clk 0:02:50]} 7. Nxe4 {[%clk 0:02:52]}  Nbd7 {[%clk 0:02:45]} 8. O-O {[%clk 0:02:43]}  O-O {[%clk 0:02:45]} 9. Re1 {[%clk 0:02:43]}  Nxe4 {[%clk 0:02:39]} 10. Bxe4 {[%clk 0:02:42]}  Qc7 {[%clk 0:02:36]} 11. c4 {[%clk 0:02:32]}  e5 {[%clk 0:02:27]} 12. Bg5 {[%clk 0:02:12]}  exd4 {[%clk 0:02:22]} 13. Qd2 {[%clk 0:02:02]}  Nf6 {[%clk 0:02:10]} 14. Bd3 {[%clk 0:01:59]}  c5 {[%clk 0:02:07]} 15. Re2 {[%clk 0:01:47]}  Bd7 {[%clk 0:02:02]} 16. Rae1 {[%clk 0:01:43]}  Rae8 {[%clk 0:02:00]} 17. Ne5 {[%clk 0:01:43]}  Bc6 {[%clk 0:01:31]} 18. Bh6 {[%clk 0:01:31]}  Re6 {[%clk 0:01:24]} 19. Qg5 {[%clk 0:01:08]}  Rfe8 {[%clk 0:01:06]} 20. Bxg7 {[%clk 0:00:55]}  Kxg7 {[%clk 0:01:07]} 21. f4 {[%clk 0:00:55]}  Ng8 {[%clk 0:00:34]} 22. Qg3 {[%clk 0:00:47]}  R6e7 {[%clk 0:00:20]} 23. h4 {[%clk 0:00:36]}  Nf6 {[%clk 0:00:15]} 24. Qg5 {[%clk 0:00:16]}  h6 {[%clk 0:00:06]} 25. Qg3 {[%clk 0:00:15]}  Nh5 {[%clk 0:00:06]} 26. Qg4 {[%clk 0:00:15]}  Qd6 {[%clk 0:00:04]} 27. Bf5 {[%clk 0:00:10]}  Nf6 {[%clk 0:00:03]} 28. Qg3 {[%clk 0:00:10]}  Nh5 {[%clk 0:00:04]} 29. Qg4 {[%clk 0:00:11]}  Qf6 {[%clk 0:00:04]} 30. Nxg6 {[%clk 0:00:08]}  fxg6 {[%clk 0:00:03]} 31. Rxe7+ {[%clk 0:00:08]}  Rxe7 {[%clk 0:00:04]} 32. Rxe7+ {[%clk 0:00:09]}  Qxe7 {[%clk 0:00:03]} 33. Qxg6+ {[%clk 0:00:10]}  Kf8 {[%clk 0:00:04]} 34. Qxh5 {[%clk 0:00:09]}  Qe3+ {[%clk 0:00:05]} 35. Kh1 {[%clk 0:00:02]}  Qc1+ {[%clk 0:00:05]} 36. Kh2 {[%clk 0:00:02]}  Qxf4+ {[%clk 0:00:06]} 37. Kh3 {[%clk 0:00:02]}  d3 {[%clk 0:00:04]} 38. Qg6 {[%clk 0:00:02]}  Qe3+ {[%clk 0:00:02]} 39. Kh2 {[%clk 0:00:02]}  Qe5+ {[%clk 0:00:03]} 40. Kh3 {[%clk 0:00:02]}  d2 {[%clk 0:00:02]} 41. Qxh6+ {[%clk 0:00:03]}  Ke7 {[%clk 0:00:02]} 42. Qg5+ {[%clk 0:00:02]}  Kf7 {[%clk 0:00:03]} 43. Bg6+ {[%clk 0:00:03]}  Ke6 {[%clk 0:00:04]} 44. Bf7+ {[%clk 0:00:03]}  Kxf7 {[%clk 0:00:04]} 45. Qh5+ {[%clk 0:00:03]}  Qxh5 {[%clk 0:00:04]} 0-1


[Site "https://www.chess.com"]

[Event "Titled Tuesday Blitz March 07 Early 2023"]
[White "Yuan, Qingyu"]
[Black "Fedoseev, Vladimir"]
[WhiteFideId "8609772"]
[BlackFideId "24130737"]
[WhiteElo "2359"]
[BlackElo "2752"]
[Result "0-1"]
[Round "05"]
[TimeControl "180+2"]
[Date "2023.03.07"]
[WhiteClock "0:00:02"]
[BlackClock "0:00:16"]

1. e4 {[%clk 0:03:00]}  c5 {[%clk 0:02:49]} 2. Nf3 {[%clk 0:03:00]}  d6 {[%clk 0:02:49]} 3. Bb5+ {[%clk 0:02:57]}  Nd7 {[%clk 0:02:48]} 4. O-O {[%clk 0:02:46]}  a6 {[%clk 0:02:45]} 5. Bd3 {[%clk 0:02:41]}  Ngf6 {[%clk 0:02:37]} 6. Re1 {[%clk 0:02:39]}  b5 {[%clk 0:02:32]} 7. Bf1 {[%clk 0:02:29]}  Bb7 {[%clk 0:02:31]} 8. d3 {[%clk 0:02:26]}  g6 {[%clk 0:02:31]} 9. a4 {[%clk 0:02:26]}  Bg7 {[%clk 0:02:30]} 10. Nc3 {[%clk 0:02:20]}  b4 {[%clk 0:02:29]} 11. Ne2 {[%clk 0:02:20]}  O-O {[%clk 0:02:28]} 12. Ng3 {[%clk 0:02:20]}  a5 {[%clk 0:02:15]} 13. Bf4 {[%clk 0:02:10]}  e5 {[%clk 0:02:11]} 14. Bd2 {[%clk 0:02:06]}  d5 {[%clk 0:02:09]} 15. Qc1 {[%clk 0:01:54]}  Re8 {[%clk 0:02:07]} 16. Bh6 {[%clk 0:01:52]}  Bh8 {[%clk 0:01:56]} 17. h3 {[%clk 0:01:39]}  Qb6 {[%clk 0:01:48]} 18. Qg5 {[%clk 0:01:34]}  c4 {[%clk 0:01:41]} 19. exd5 {[%clk 0:01:16]}  cxd3 {[%clk 0:01:34]} 20. Bxd3 {[%clk 0:01:09]}  Nxd5 {[%clk 0:01:30]} 21. Rad1 {[%clk 0:00:51]}  Nc5 {[%clk 0:01:15]} 22. Bb5 {[%clk 0:00:46]}  Bf6 {[%clk 0:01:13]} 23. Qg4 {[%clk 0:00:42]}  Bc8 {[%clk 0:01:11]} 24. Qc4 {[%clk 0:00:39]}  Be6 {[%clk 0:01:03]} 25. Bxe8 {[%clk 0:00:37]}  Nc3 {[%clk 0:00:57]} 26. Qf1 {[%clk 0:00:30]}  Nxd1 {[%clk 0:00:53]} 27. Bxf7+ {[%clk 0:00:20]}  Bxf7 {[%clk 0:00:52]} 28. Rxd1 {[%clk 0:00:20]}  Nxa4 {[%clk 0:00:52]} 29. b3 {[%clk 0:00:19]}  Nc3 {[%clk 0:00:51]} 30. Re1 {[%clk 0:00:19]}  Re8 {[%clk 0:00:45]} 31. Ne4 {[%clk 0:00:17]}  Nxe4 {[%clk 0:00:40]} 32. Rxe4 {[%clk 0:00:18]}  Bd5 {[%clk 0:00:40]} 33. Re3 {[%clk 0:00:17]}  e4 {[%clk 0:00:39]} 34. Qd1 {[%clk 0:00:11]}  Rd8 {[%clk 0:00:34]} 35. Nd2 {[%clk 0:00:09]}  g5 {[%clk 0:00:22]} 36. Qh5 {[%clk 0:00:08]}  Bf7 {[%clk 0:00:22]} 37. Qe2 {[%clk 0:00:08]}  Bc3 {[%clk 0:00:20]} 38. Bxg5 {[%clk 0:00:02]}  Rxd2 {[%clk 0:00:20]} 39. Qg4 {[%clk 0:00:02]}  Qe6 {[%clk 0:00:20]} 40. Qg3 {[%clk 0:00:02]}  Bg6 {[%clk 0:00:16]} 0-1


[Site "https://www.chess.com"]

[Event "Titled Tuesday Blitz March 07 Early 2023"]
[White "Bortnyk, Olexandr"]
[Black "Nogerbek, Kazybek"]
[WhiteFideId "14120828"]
[BlackFideId "13710427"]
[WhiteElo "2734"]
[BlackElo "2501"]
[Result "1-0"]
[Round "05"]
[TimeControl "180+2"]
[Date "2023.03.07"]
[WhiteClock "0:00:36"]
[BlackClock "0:00:20"]

1. d4 {[%clk 0:02:55]}  Nf6 {[%clk 0:02:38]} 2. Nc3 {[%clk 0:02:52]}  d5 {[%clk 0:02:38]} 3. Bf4 {[%clk 0:02:52]}  a6 {[%clk 0:02:38]} 4. e3 {[%clk 0:02:52]}  c5 {[%clk 0:02:38]} 5. dxc5 {[%clk 0:02:52]}  e6 {[%clk 0:02:36]} 6. Na4 {[%clk 0:02:51]}  Bxc5 {[%clk 0:02:35]} 7. Nxc5 {[%clk 0:02:52]}  Qa5+ {[%clk 0:02:36]} 8. c3 {[%clk 0:02:53]}  Qxc5 {[%clk 0:02:35]} 9. Nf3 {[%clk 0:02:44]}  Nc6 {[%clk 0:02:36]} 10. Bd3 {[%clk 0:02:41]}  O-O {[%clk 0:02:36]} 11. O-O {[%clk 0:02:35]}  Qe7 {[%clk 0:02:32]} 12. Ne5 {[%clk 0:02:35]}  Nxe5 {[%clk 0:02:31]} 13. Bxe5 {[%clk 0:02:35]}  Nd7 {[%clk 0:02:32]} 14. Bg3 {[%clk 0:02:31]}  b6 {[%clk 0:02:24]} 15. e4 {[%clk 0:02:29]}  Bb7 {[%clk 0:02:01]} 16. exd5 {[%clk 0:02:27]}  Bxd5 {[%clk 0:01:54]} 17. Re1 {[%clk 0:02:27]}  Rfe8 {[%clk 0:01:39]} 18. c4 {[%clk 0:02:10]}  Bc6 {[%clk 0:01:37]} 19. Re3 {[%clk 0:01:55]}  a5 {[%clk 0:01:29]} 20. Qh5 {[%clk 0:01:22]}  g6 {[%clk 0:01:24]} 21. Qh6 {[%clk 0:01:17]}  f6 {[%clk 0:01:12]} 22. Rae1 {[%clk 0:01:10]}  Qf7 {[%clk 0:01:12]} 23. Bd6 {[%clk 0:01:06]}  Nc5 {[%clk 0:01:01]} 24. Bxc5 {[%clk 0:00:56]}  bxc5 {[%clk 0:01:02]} 25. Rg3 {[%clk 0:00:56]}  f5 {[%clk 0:00:45]} 26. h4 {[%clk 0:00:50]}  e5 {[%clk 0:00:41]} 27. h5 {[%clk 0:00:48]}  Re6 {[%clk 0:00:40]} 28. hxg6 {[%clk 0:00:46]}  hxg6 {[%clk 0:00:30]} 29. Rxe5 {[%clk 0:00:45]}  Rae8 {[%clk 0:00:28]} 30. Bxf5 {[%clk 0:00:42]}  Rd6 {[%clk 0:00:20]} 31. Bxg6 {[%clk 0:00:36]} 1-0


[Site "https://www.chess.com"]

[Event "Titled Tuesday Blitz March 07 Early 2023"]
[White "Rustemov, Alexander"]
[Black "Kramnik, Vladimir"]
[WhiteFideId "4119002"]
[BlackFideId "4101588"]
[WhiteElo "2890"]
[BlackElo "2712"]
[Result "1-0"]
[Round "05"]
[TimeControl "180+2"]
[Date "2023.03.07"]
[WhiteClock "0:00:05"]
[BlackClock "0:00:02"]

1. d4 {[%clk 0:03:00]}  Nf6 {[%clk 0:02:58]} 2. c4 {[%clk 0:03:01]}  e6 {[%clk 0:02:58]} 3. Nf3 {[%clk 0:03:01]}  Bb4+ {[%clk 0:02:57]} 4. Bd2 {[%clk 0:03:01]}  Bxd2+ {[%clk 0:02:57]} 5. Qxd2 {[%clk 0:03:00]}  O-O {[%clk 0:02:57]} 6. g3 {[%clk 0:02:56]}  d5 {[%clk 0:02:57]} 7. Qc2 {[%clk 0:02:49]}  c6 {[%clk 0:02:53]} 8. Bg2 {[%clk 0:02:49]}  b6 {[%clk 0:02:52]} 9. O-O {[%clk 0:02:49]}  Bb7 {[%clk 0:02:52]} 10. Nbd2 {[%clk 0:02:39]}  Na6 {[%clk 0:02:47]} 11. Rac1 {[%clk 0:02:34]}  c5 {[%clk 0:02:42]} 12. cxd5 {[%clk 0:02:25]}  exd5 {[%clk 0:02:41]} 13. Ne5 {[%clk 0:02:20]}  Re8 {[%clk 0:02:35]} 14. Ndf3 {[%clk 0:02:18]}  Ne4 {[%clk 0:02:35]} 15. Rfd1 {[%clk 0:02:16]}  Qe7 {[%clk 0:02:27]} 16. dxc5 {[%clk 0:02:00]}  bxc5 {[%clk 0:02:18]} 17. Nd3 {[%clk 0:02:00]}  d4 {[%clk 0:02:13]} 18. Nd2 {[%clk 0:01:53]}  Nxd2 {[%clk 0:01:58]} 19. Rxd2 {[%clk 0:01:53]}  Bxg2 {[%clk 0:01:55]} 20. Kxg2 {[%clk 0:01:54]}  h5 {[%clk 0:01:45]} 21. h4 {[%clk 0:01:48]}  Rac8 {[%clk 0:01:42]} 22. Qc4 {[%clk 0:01:46]}  Qe4+ {[%clk 0:01:30]} 23. Kg1 {[%clk 0:01:42]}  Qb7 {[%clk 0:01:26]} 24. Rdc2 {[%clk 0:01:35]}  g6 {[%clk 0:01:22]} 25. a3 {[%clk 0:01:28]}  Red8 {[%clk 0:00:54]} 26. Nf4 {[%clk 0:01:24]}  Kg7 {[%clk 0:00:52]} 27. Qd3 {[%clk 0:01:22]}  Rc7 {[%clk 0:00:41]} 28. b4 {[%clk 0:01:02]}  cxb4 {[%clk 0:00:40]} 29. Rxc7 {[%clk 0:01:02]}  Nxc7 {[%clk 0:00:40]} 30. axb4 {[%clk 0:01:02]}  Nb5 {[%clk 0:00:38]} 31. Rc4 {[%clk 0:00:53]}  a6 {[%clk 0:00:36]} 32. Kh2 {[%clk 0:00:44]}  Qd7 {[%clk 0:00:33]} 33. Qf3 {[%clk 0:00:41]}  Rc8 {[%clk 0:00:31]} 34. Rxc8 {[%clk 0:00:40]}  Qxc8 {[%clk 0:00:31]} 35. Nd3 {[%clk 0:00:40]}  Qe6 {[%clk 0:00:28]} 36. Kg2 {[%clk 0:00:39]}  Nc3 {[%clk 0:00:27]} 37. Nc5 {[%clk 0:00:38]}  Qe5 {[%clk 0:00:23]} 38. Nxa6 {[%clk 0:00:33]}  Nxe2 {[%clk 0:00:23]} 39. Nc5 {[%clk 0:00:34]}  Nc3 {[%clk 0:00:22]} 40. Nd3 {[%clk 0:00:32]}  Qb5 {[%clk 0:00:22]} 41. Kg1 {[%clk 0:00:28]}  Qc4 {[%clk 0:00:22]} 42. Kg2 {[%clk 0:00:27]}  Qb5 {[%clk 0:00:22]} 43. Kg1 {[%clk 0:00:27]}  Nd5 {[%clk 0:00:20]} 44. Qe4 {[%clk 0:00:26]}  Nf6 {[%clk 0:00:20]} 45. Qxd4 {[%clk 0:00:25]}  Qa4 {[%clk 0:00:17]} 46. Nf4 {[%clk 0:00:25]}  Qc6 {[%clk 0:00:15]} 47. Qb2 {[%clk 0:00:21]}  Qb5 {[%clk 0:00:13]} 48. Ne2 {[%clk 0:00:21]}  Qc6 {[%clk 0:00:10]} 49. b5 {[%clk 0:00:21]}  Qb6 {[%clk 0:00:10]} 50. Nf4 {[%clk 0:00:19]}  Kg8 {[%clk 0:00:10]} 51. Qe5 {[%clk 0:00:15]}  Ng4 {[%clk 0:00:09]} 52. Qe8+ {[%clk 0:00:11]}  Kg7 {[%clk 0:00:09]} 53. Qe2 {[%clk 0:00:12]}  Qc5 {[%clk 0:00:08]} 54. Kg2 {[%clk 0:00:11]}  Qb6 {[%clk 0:00:07]} 55. f3 {[%clk 0:00:11]}  Nf6 {[%clk 0:00:06]} 56. Qe5 {[%clk 0:00:10]}  Kg8 {[%clk 0:00:05]} 57. Ne2 {[%clk 0:00:08]}  Nd7 {[%clk 0:00:03]} 58. Qe8+ {[%clk 0:00:08]}  Nf8 {[%clk 0:00:03]} 59. Nf4 {[%clk 0:00:08]}  Kg7 {[%clk 0:00:02]} 60. Qc6 {[%clk 0:00:08]}  Qd4 {[%clk 0:00:02]} 61. Qc2 {[%clk 0:00:05]} 1-0


[Site "https://www.chess.com"]